bitfinex/quotes_SOLUSD_20250417
["timestamp","ask_amount","ask_price","bid_price","bid_amount"]
[1744932361421,2.77528711,134.69,134.65,8.68586559]
[1744932361934,18.64964886,134.68,134.64,8.68586559]
[1744932362437,2.77528711,134.67,134.64,8.68586559]
[1744932363028,2.77528711,134.67,134.65,8.68586559]
[1744932363225,10.19995434,134.69,134.65,8.68586559]
[1744932364137,10.19995434,134.69,134.66,8.68586559]
[1744932364436,2.77528711,134.68,134.65,8.68586559]
[1744932365343,7.42466723,134.69,134.65,8.68586559]
[1744932366739,7.42466723,134.69,134.66,8.68586559]
[1744932367042,7.42466723,134.69,134.65,8.68586559]
[1744932368124,2.77528851,134.68,134.65,8.68586559]
[1744932369042,2.77528851,134.68,134.66,8.68586559]
[1744932369226,16.4422,134.71,134.67,8.68586559]
[1744932369429,25.12806559,134.71,134.67,8.68586559]
[1744932369725,10.30806559,134.71,134.66,8.68586559]
[1744932369923,10.30806559,134.71,134.67,8.68586559]
[1744932370446,10.19851971,134.7,134.67,8.68586559]
[1744932371150,7.42391759,134.7,134.67,8.68586559]
[1744932376769,7.42391759,134.7,134.68,8.68586559]
[1744932377135,7.42391759,134.7,134.67,8.68586559]
[1744932380462,0.03,134.71,134.69,8.68586559]
[1744932380752,0.03,134.71,134.7,8.68586559]
[1744932381840,0.03,134.71,134.7,16.10977056]
[1744932390958,0.03,134.71,134.7,42.25193213]
[1744932391266,0.03,134.71,134.7,16.53625527]
[1744932394562,0.03,134.71,134.69,7.42426524]
[1744932394864,0.03,134.71,134.7,34.68586559]
[1744932395637,0.03,134.71,134.7,42.10977056]
[1744932397639,0.03,134.71,134.7,16.53625527]
[1744932402651,0.03,134.71,134.7,42.53625527]
[1744932402849,0.03,134.71,134.7,16.53625527]
[1744932403651,0.03,134.71,134.7,34.68586559]
[1744932405674,0.03,134.71,134.7,42.25193213]
[1744932414060,0.03,134.71,134.7,42.53625527]
[1744932415684,0.03,134.71,134.7,16.53625527]
[1744932418484,0.03,134.73,134.72,34.82802716]
[1744932420192,0.03,134.73,134.72,42.25083001]
[1744932420388,0.03,134.73,134.72,26.0]
[1744932420570,0.03,134.73,134.72,8.68586559]
[1744932422385,1.6692,134.73,134.68,7.42488996]
[1744932422697,1.6692,134.73,134.64,231.26]
[1744932422698,8.68586559,134.69,134.64,231.26]
[1744932422879,8.68586559,134.69,134.66,26.0]
[1744932423080,8.68586559,134.69,134.64,239.94586559]
[1744932423270,8.68586559,134.69,134.67,26.0]
[1744932423882,8.68586559,134.7,134.67,26.0]
[1744932424296,7.42445615,134.69,134.67,26.0]
[1744932429798,7.42445615,134.69,134.65,8.68586559]
[1744932430007,10.34626559,134.68,134.63,23.32586559]
[1744932430190,10.34626559,134.68,134.64,8.68586559]
[1744932430399,1.6604,134.68,134.64,8.68586559]
[1744932431307,9.0858948,134.68,134.64,8.68586559]
[1744932433708,17.77176039,134.68,134.64,8.68586559]
[1744932434612,9.0858948,134.68,134.64,8.68586559]
[1744932435506,9.0858948,134.68,134.65,8.68586559]
[1744932437711,9.0858948,134.68,134.63,48.06766579]
[1744932437888,9.0858948,134.68,134.65,8.68586559]
[1744932438091,9.0858948,134.68,134.64,8.68586559]
[1744932438890,17.77176039,134.68,134.63,49.32586559]
[1744932439706,17.77176039,134.68,134.64,8.68586559]
[1744932440413,17.77176039,134.68,134.63,40.64]
[1744932440618,8.68586559,134.67,134.63,34.68586559]
[1744932441114,8.68586559,134.67,134.6,7.63420912]
[1744932441115,8.68586559,134.67,134.62,8.68586559]
[1744932441918,14.0757102,134.66,134.62,8.68586559]
[1744932442101,22.76157579,134.66,134.61,34.68586559]
[1744932443319,14.0757102,134.66,134.62,8.68586559]
[1744932445200,14.0757102,134.66,134.63,8.68586559]
[1744932445403,14.0757102,134.66,134.62,8.68586559]
[1744932445601,14.0757102,134.66,134.61,26.0]
[1744932445602,14.0757102,134.66,134.63,8.68586559]
[1744932450224,14.0757102,134.66,134.62,8.68586559]
[1744932454029,22.76157579,134.66,134.62,8.68586559]
[1744932455127,22.76157579,134.66,134.61,34.68586559]
[1744932457823,14.0757102,134.66,134.63,8.68586559]
[1744932458129,14.0757102,134.66,134.62,8.68586559]
[1744932460136,7.4261102,134.66,134.64,8.68586559]
[1744932461108,1.6604,134.68,134.65,8.68586559]
[1744932461311,7.42431124,134.7,134.67,8.68586559]
[1744932463515,7.45265225,134.73,134.69,8.68586559]
[1744932463717,7.45265225,134.73,134.7,8.68586559]
[1744932468023,0.03,134.73,134.71,8.68586559]
[1744932468224,0.03,134.73,134.72,8.68586559]
[1744932468436,0.03,134.73,134.69,7.42425362]
[1744932468437,0.03,134.73,134.71,8.68586559]
[1744932468739,0.03,134.73,134.7,8.68586559]
[1744932471037,0.03,134.73,134.72,8.68586559]
[1744932479243,0.03,134.73,134.72,16.10866844]
[1744932479939,0.03,134.73,134.72,8.68586559]
[1744932488754,0.03,134.73,134.7,40.64]
[1744932488955,8.68586559,134.72,134.66,7.48891531]
[1744932489161,0.03,134.73,134.66,8.74886559]
[1744932489162,8.68586559,134.71,134.66,8.74886559]
[1744932489338,8.68586559,134.7,134.66,34.74886559]
[1744932489533,8.68586559,134.7,134.66,26.063]
[1744932489731,10.21886559,134.7,134.66,26.063]
[1744932490254,7.42445615,134.69,134.66,26.063]
[1744932490561,7.42445615,134.69,134.66,0.063]
[1744932491052,7.42445615,134.69,134.66,8.74886559]
[1744932491760,7.42445615,134.69,134.67,8.68586559]
[1744932491962,8.95707954,134.7,134.67,8.68586559]
[1744932493061,7.423444,134.71,134.68,8.68586559]
[1744932493861,7.42282642,134.72,134.69,8.68586559]
[1744932494856,7.42282642,134.72,134.7,8.68586559]
[1744932495048,1.5887,134.73,134.7,8.68586559]
[1744932495362,0.03,134.73,134.72,8.68586559]
[1744932495745,0.03,134.73,134.71,8.68586559]
[1744932500253,8.71586559,134.73,134.68,34.68586559]
[1744932500443,8.71586559,134.73,134.68,8.68586559]
[1744932500850,0.03,134.73,134.69,8.68586559]
[1744932501063,0.03,134.73,134.7,8.68586559]
[1744932501549,8.71586559,134.73,134.69,8.68586559]
[1744932502073,7.42280285,134.72,134.69,8.68586559]
[1744932502570,16.10866844,134.72,134.67,26.0]
[1744932502751,8.68586559,134.71,134.67,34.68586559]
[1744932502949,16.10866844,134.72,134.67,34.68586559]
[1744932506573,8.68586559,134.71,134.67,34.68586559]
[1744932506872,8.68586559,134.71,134.67,26.0]
[1744932507069,8.68586559,134.71,134.67,34.68586559]
[1744932507677,7.42390497,134.7,134.66,8.74886559]
[1744932507868,9.08520497,134.7,134.66,8.74886559]
[1744932508778,17.77107056,134.7,134.66,8.74886559]
[1744932511667,14.71966559,134.69,134.66,0.063]
[1744932512364,6.0338,134.69,134.66,0.063]
[1744932512765,9.08520497,134.7,134.67,8.68586559]
[1744932513462,9.08520497,134.7,134.66,8.74886559]
[1744932515479,17.77107056,134.7,134.66,8.74886559]
[1744932515777,8.68586559,134.69,134.66,0.063]
[1744932517081,7.42500742,134.68,134.66,0.063]
[1744932517765,8.68586559,134.67,134.66,0.063]
[1744932518883,16.11142436,134.67,134.66,0.063]
[1744932523987,7.42555877,134.67,134.66,0.063]
[1744932526222,7.42525151,134.68,134.66,8.74886559]
[1744932526491,7.42525151,134.68,134.66,0.063]
[1744932529693,8.68586559,134.68,134.66,0.063]
[1744932530901,7.42555877,134.67,134.66,0.063]
[1744932531384,0.03,134.73,134.66,49.38886559]
[1744932531696,0.03,134.73,134.71,8.68586559]
[1744932537103,0.03,134.73,134.7,8.68586559]
[1744932548188,0.03,134.73,134.7,16.10970809]
[1744932549407,18.67964886,134.73,134.7,8.68586559]
[1744932551190,0.03,134.73,134.71,8.68586559]
[1744932553899,0.03,134.73,134.71,16.10911577]
[1744932555685,0.03,134.73,134.72,8.68586559]
[1744932556292,0.03,134.73,134.72,34.68586559]
[1744932557714,0.03,134.73,134.72,42.25083001]
[1744932558115,1e-08,134.73,134.72,16.53515315]
[1744932561425,1e-08,134.73,134.72,22.53365903]
[1744932563933,1e-08,134.73,134.72,22.53365903]
[1744932565409,0.01000001,134.74,134.73,20.14216157]
[1744932565614,0.02000001,134.75,134.74,0.28432314]
[1744932565923,0.02000001,134.75,134.74,34.68586559]
[1744932566821,0.02000001,134.75,134.74,42.10756664]
[1744932567434,0.02000001,134.75,134.7,25.98356944]
[1744932567736,0.02000001,134.75,134.74,8.68586559]
[1744932568932,0.02000001,134.75,134.74,34.68586559]
[1744932575934,0.02000001,134.75,134.73,8.68586559]
[1744932576927,0.02000001,134.75,134.72,26.0]
[1744932577127,8.68586559,134.74,134.7,23.30586559]
[1744932577309,8.68586559,134.74,134.7,14.62]
[1744932577506,27.35551446,134.75,134.7,49.30586559]
[1744932578535,7.42170105,134.74,134.7,49.30586559]
[1744932579224,7.42170105,134.74,134.71,8.68586559]
[1744932583844,7.42170105,134.74,134.7,49.30586559]
[1744932585632,7.42170105,134.74,134.7,34.68586559]
[1744932587241,7.42170105,134.74,134.7,26.0]
[1744932587444,8.68586559,134.71,134.66,14.703]
[1744932587626,10.28876559,134.71,134.66,23.38886559]
[1744932587826,1.6029,134.71,134.67,8.68586559]
[1744932588035,16.71656559,134.71,134.66,49.38886559]
[1744932588841,7.42390497,134.7,134.66,49.38886559]
[1744932589540,7.42390497,134.7,134.66,34.74886559]
[1744932589750,16.10977056,134.7,134.66,26.063]
[1744932589943,16.10977056,134.7,134.66,34.74886559]
[1744932590145,7.42390497,134.7,134.67,8.68586559]
[1744932590654,24.14010192,134.71,134.67,8.68586559]
[1744932590945,7.42300485,134.72,134.69,8.68586559]
[1744932593448,7.42300485,134.72,134.68,8.68586559]
[1744932593761,16.10887044,134.72,134.68,8.68586559]
[1744932595051,7.42300485,134.72,134.68,8.68586559]
[1744932599554,16.10887044,134.72,134.68,8.68586559]
[1744932603156,7.42300485,134.72,134.68,8.68586559]
[1744932603360,7.42300485,134.72,134.69,8.68586559]
[1744932603860,7.42193779,134.74,134.7,8.68586559]
[1744932606461,16.10780338,134.74,134.7,8.68586559]
[1744932607968,23.75182764,134.75,134.71,8.68586559]
[1744932608143,15.06596205,134.75,134.71,8.68586559]
[1744932610363,23.75182764,134.75,134.71,8.68586559]
[1744932610947,8.68586559,134.73,134.69,26.0]
[1744932613866,7.44131887,134.75,134.72,8.68586559]
[1744932614244,7.44131887,134.75,134.71,8.68586559]
[1744932619655,8.68586559,134.74,134.69,26.0]
[1744932619848,8.68586559,134.73,134.69,26.0]
[1744932620055,8.68586559,134.73,134.69,34.68586559]
[1744932621471,7.42280285,134.72,134.69,26.0]
[1744932621656,16.10866844,134.72,134.67,8.68586559]
[1744932622070,16.10866844,134.72,134.68,8.68586559]
[1744932623075,16.1081175,134.73,134.68,8.68586559]
[1744932623258,16.1081175,134.73,134.69,8.68586559]
[1744932624779,16.1081175,134.73,134.7,8.68586559]
[1744932624780,7.42225191,134.73,134.7,8.68586559]
[1744932626872,7.42225191,134.73,134.71,8.68586559]
[1744932627558,7.42225191,134.73,134.7,8.68586559]
[1744932634589,7.42225191,134.73,134.71,8.68586559]
[1744932636494,7.42225191,134.73,134.7,8.68586559]
[1744932636991,7.42225191,134.73,134.67,22.04555877]
[1744932637181,8.68586559,134.72,134.67,14.62]
[1744932637381,8.68586559,134.72,134.67,23.30586559]
[1744932637783,8.68586559,134.72,134.68,8.68586559]
[1744932638183,53.31339613,134.73,134.69,8.68586559]
[1744932638389,2.77450321,134.72,134.69,8.68586559]
[1744932639200,10.19789662,134.71,134.69,8.68586559]
[1744932640290,7.42280285,134.72,134.69,8.68586559]
[1744932641597,10.19778354,134.71,134.69,8.68586559]
[1744932642186,7.42346714,134.71,134.69,8.68586559]
[1744932643005,7.42280285,134.72,134.69,8.68586559]
[1744932643610,2.77421551,134.71,134.69,8.68586559]
[1744932644100,2.77421551,134.71,134.68,8.68586559]
[1744932644481,16.10866844,134.72,134.67,23.30586559]
[1744932646074,16.10866844,134.72,134.66,26.063]
[1744932646075,7.42390497,134.7,134.66,34.74886559]
[1744932646274,16.10977056,134.7,134.66,34.74886559]
[1744932646794,34.66953299,134.7,134.66,26.063]
[1744932646994,8.68586559,134.69,134.66,0.063]
[1744932647199,8.68586559,134.67,134.66,0.063]
[1744932648002,11.46007928,134.67,134.66,0.063]
[1744932648201,18.88563805,134.67,134.66,0.063]
[1744932648773,10.19977246,134.67,134.66,0.063]
[1744932649495,7.42555877,134.67,134.66,0.063]
[1744932650203,26.07410501,134.69,134.66,0.063]
[1744932650384,34.7599706,134.69,134.66,0.063]
[1744932650799,2.7696134,134.68,134.66,0.063]
[1744932651182,11.45547899,134.68,134.66,0.063]
[1744932652192,53.32111099,134.69,134.66,0.063]
[1744932652788,7.42555877,134.67,134.66,0.063]
[1744932654104,34.76107322,134.67,134.66,0.063]
[1744932655015,37.52776307,134.67,134.66,0.063]
[1744932657286,37.52776307,134.67,134.66,1e-08]
[1744932657287,39.61064778,134.67,134.66,1e-08]
[1744932657493,45.88434778,134.67,134.66,1e-08]
[1744932658989,44.64964886,134.65,134.64,1e-08]
[1744932659193,44.64964886,134.65,134.6,0.063]
[1744932659194,0.42648471,134.63,134.6,0.063]
[1744932659409,27.33551445,134.61,134.6,0.063]
[1744932659911,18.64964886,134.63,134.6,0.063]
[1744932660102,27.33551445,134.63,134.6,0.063]
[1744932660414,16.11418233,134.62,134.6,0.063]
[1744932661207,8.68586559,134.61,134.6,0.063]
[1744932661413,27.33551445,134.61,134.6,0.063]
[1744932662723,34.76438303,134.61,134.6,0.063]
[1744932663625,26.07851744,134.61,134.6,0.063]
[1744932663802,26.28432314,134.65,134.6,8.74886559]
[1744932663803,7.42849664,134.62,134.6,8.74886559]
[1744932664623,7.42849664,134.62,134.6,0.063]
[1744932664917,7.42776498,134.63,134.6,0.063]
[1744932665115,34.76327943,134.63,134.6,0.063]
[1744932665518,26.07741384,134.63,134.6,0.063]
[1744932665699,7.42776498,134.63,134.6,0.063]
[1744932665905,7.42776498,134.63,134.6,8.74886559]
[1744932666723,7.42776498,134.63,134.6,0.063]
[1744932667318,16.11363057,134.63,134.6,0.063]
[1744932668208,7.42776498,134.63,134.6,0.063]
[1744932668731,7.42776498,134.63,134.6,8.74886559]
[1744932668933,7.4261102,134.66,134.62,8.68586559]
[1744932669117,7.4261102,134.66,134.6,0.063]
[1744932669118,7.4261102,134.66,134.63,8.68586559]
[1744932670127,7.4261102,134.66,134.64,8.68586559]
[1744932675208,7.4261102,134.66,134.63,8.68586559]
[1744932675414,8.68586559,134.64,134.6,8.74886559]
[1744932675613,8.68586559,134.64,134.6,26.063]
[1744932675815,8.68586559,134.63,134.6,26.063]
[1744932676217,8.68586559,134.64,134.6,26.063]
[1744932676419,8.68586559,134.64,134.6,34.74886559]
[1744932676723,7.42776498,134.63,134.6,34.74886559]
[1744932679839,7.4272133,134.64,134.61,8.68586559]
[1744932680739,7.4272133,134.64,134.62,8.68586559]
[1744932683237,7.9301,134.67,134.63,8.68586559]
[1744932683437,7.42445615,134.69,134.66,8.68586559]
[1744932683739,7.42445615,134.69,134.68,8.68586559]
[1744932684037,8.99065486,134.71,134.68,8.68586559]
[1744932684229,7.42355486,134.71,134.69,8.68586559]
[1744932685121,26.10245171,134.72,134.68,8.68586559]
[1744932687018,7.45280285,134.72,134.69,8.68586559]
[1744932687225,7.45280285,134.72,134.7,8.68586559]
[1744932687543,7.45280285,134.72,134.69,8.68586559]
[1744932689437,7.45280285,134.72,134.66,33.42595446]
[1744932689636,7.45280285,134.72,134.69,8.68586559]
[1744932692526,18.64964886,134.71,134.67,8.68586559]
[1744932692848,27.33551445,134.71,134.67,8.68586559]
[1744932693025,7.45280285,134.72,134.69,8.68586559]
[1744932693427,18.64964886,134.71,134.67,8.68586559]
[1744932693733,27.33551445,134.71,134.67,8.68586559]
[1744932694950,7.42390497,134.7,134.67,8.68586559]
[1744932697044,0.03,134.72,134.69,8.68586559]
[1744932697228,0.03,134.72,134.71,8.68586559]
[1744932701365,0.03,134.72,134.69,26.0]
[1744932701543,0.03,134.72,134.67,22.06523145]
[1744932701748,0.03,134.72,134.69,8.68586559]
[1744932702046,0.03,134.72,134.7,8.68586559]
[1744932707652,0.03,134.72,134.71,8.68586559]
[1744932714363,0.03,134.72,134.71,16.10921946]
[1744932715260,0.03,134.72,134.71,42.25138103]
[1744932718440,0.03,134.72,134.71,42.10921946]
[1744932719741,0.03,134.72,134.71,34.68586559]
[1744932719947,0.03,134.72,134.71,26.0]
[1744932720141,0.03,134.72,134.68,90.32484577]
[1744932720347,0.03,134.72,134.7,8.68586559]
[1744932723176,0.03,134.72,134.71,8.68586559]
[1744932725367,0.03,134.72,134.71,34.68586559]
[1744932725875,0.03,134.72,134.71,42.10921946]
[1744932726981,0.03,134.72,134.71,42.25138103]
[1744932729457,0.03,134.72,134.71,16.53570417]
[1744932729663,0.02000001,134.75,134.74,26.0]
[1744932729989,0.02000001,134.75,134.74,34.68586559]
[1744932730284,0.02000001,134.75,134.74,35.1123503]
[1744932730455,0.03,134.76,134.75,43.57148952]
[1744932731062,0.03,134.76,134.75,50.99263979]
[1744932735564,0.03,134.76,134.75,51.27696293]
[1744932736776,0.03,134.76,134.75,50.99263979]
[1744932736976,0.03,134.76,134.75,8.68586559]
[1744932737272,0.03,134.76,134.74,8.68586559]
[1744932737977,0.03,134.76,134.75,8.68586559]
[1744932738179,0.03,134.76,134.75,34.68586559]
[1744932742366,0.03,134.76,134.75,8.68586559]
[1744932744376,0.03,134.76,134.75,34.68586559]
[1744932750786,0.03,134.76,134.75,42.10701586]
[1744932751988,0.03,134.76,134.75,34.68586559]
[1744932755991,0.03,134.76,134.73,34.68586559]
[1744932756170,0.03,134.76,134.73,8.68586559]
[1744932756693,0.03,134.76,134.74,8.68586559]
[1744932757788,0.03,134.76,134.73,8.68586559]
[1744932757997,13.58349958,134.76,134.73,8.68586559]
[1744932758384,13.58349958,134.76,134.72,49.30586559]
[1744932758692,22.26936517,134.76,134.72,40.62]
[1744932758912,22.26936517,134.76,134.72,49.30586559]
[1744932759192,13.58349958,134.76,134.72,49.30586559]
[1744932759377,13.58349958,134.76,134.72,34.68586559]
[1744932762096,13.58349958,134.76,134.73,8.68586559]
[1744932764896,13.58349958,134.76,134.72,34.68586559]
[1744932765071,13.58349958,134.76,134.72,8.68586559]
[1744932765273,13.58349958,134.76,134.7,7.42367479]
[1744932765274,8.68586559,134.75,134.71,8.68586559]
[1744932765496,8.68586559,134.75,134.7,26.0]
[1744932765497,8.68586559,134.73,134.7,26.0]
[1744932766903,7.42280285,134.72,134.7,26.0]
[1744932769301,7.42225191,134.73,134.7,26.0]
[1744932769498,16.1081175,134.73,134.7,26.0]
[1744932769808,1.6452,134.72,134.7,26.0]
[1744932771702,9.06844012,134.72,134.7,26.0]
[1744932774511,7.42232573,134.73,134.71,8.68586559]
[1744932775096,7.42191264,134.74,134.71,8.68586559]
[1744932775291,20.22604886,134.75,134.71,8.68586559]
[1744932775604,1.5764,134.75,134.73,8.68586559]
[1744932776000,8.99756894,134.75,134.71,8.68586559]
[1744932776308,17.68343453,134.75,134.71,8.68586559]
[1744932776504,17.68343453,134.75,134.7,26.0]
[1744932776692,17.68343453,134.75,134.7,34.68586559]
[1744932777498,8.68586559,134.73,134.69,0.063]
[1744932778589,7.42280285,134.72,134.69,0.063]
[1744932779794,27.33551445,134.71,134.69,0.063]
[1744932781120,7.42390497,134.7,134.69,0.063]
[1744932782416,16.10977056,134.7,134.69,0.063]
[1744932783122,17.69207056,134.7,134.69,0.063]
[1744932788821,9.00620497,134.7,134.69,0.063]
[1744932790495,7.42390497,134.7,134.69,8.74886559]
[1744932791025,7.42390497,134.7,134.69,0.063]
[1744932794827,34.66567556,134.72,134.69,0.063]
[1744932799029,8.68586559,134.71,134.69,0.063]
[1744932799543,7.42390497,134.7,134.69,0.063]
[1744932800031,34.75941942,134.7,134.69,0.063]
[1744932800705,26.07355383,134.7,134.69,0.063]
[1744932801416,34.75941942,134.7,134.69,0.063]
[1744932801917,7.42390497,134.7,134.69,0.063]
[1744932802122,7.42390497,134.7,134.69,8.74886559]
[1744932802417,7.42280285,134.72,134.69,8.74886559]
[1744932802724,7.42280285,134.72,134.69,0.063]
[1744932803124,7.42280285,134.72,134.69,8.74886559]
[1744932804237,7.42280285,134.72,134.69,0.063]
[1744932806627,7.42390497,134.7,134.69,0.063]
[1744932807847,7.42280285,134.72,134.69,0.063]
[1744932808623,16.10866844,134.72,134.69,0.063]
[1744932809018,8.68586559,134.7,134.69,0.063]
[1744932809432,2.77094985,134.7,134.69,0.063]
[1744932809941,18.88072041,134.7,134.69,0.063]
[1744932810110,37.53036927,134.7,134.69,0.063]
[1744932810642,39.60235398,134.7,134.69,1e-08]
[1744932814324,19.07613357,134.69,134.64,0.063]
[1744932814524,27.33551445,134.65,134.64,0.063]
[1744932814728,34.76217616,134.65,134.64,0.063]
[1744932814931,37.53312601,134.65,134.64,0.063]
[1744932815139,37.95961072,134.65,134.64,1e-08]
[1744932815343,46.16061072,134.65,134.64,1e-08]
[1744932824326,46.15186496,134.65,134.64,1e-08]
[1744932830133,43.38966087,134.65,134.64,1e-08]
[1744932836551,35.18866087,134.65,134.64,1e-08]
[1744932836946,34.76217616,134.65,134.64,1e-08]
[1744932840657,26.07631057,134.65,134.64,1e-08]
[1744932840956,7.42666171,134.65,134.64,1e-08]
[1744932842551,7.42610202,134.67,134.64,1e-08]
[1744932842854,7.42610202,134.67,134.64,8.6858656]
[1744932843842,7.42500742,134.68,134.64,8.6858656]
[1744932844763,16.11087301,134.68,134.64,8.6858656]
[1744932847068,16.11087301,134.68,134.64,1e-08]
[1744932848757,7.4261102,134.66,134.64,1e-08]
[1744932848959,27.33551445,134.65,134.64,1e-08]
[1744932850063,34.76217616,134.65,134.64,1e-08]
[1744932850852,7.42666171,134.65,134.64,1e-08]
[1744932851866,16.1125273,134.65,134.64,1e-08]
[1744932853052,18.88197695,134.65,134.64,1e-08]
[1744932859876,37.95811052,134.65,134.64,1e-08]
[1744932886514,28.84576022,134.65,134.64,1e-08]
[1744932887702,2.76944965,134.65,134.64,1e-08]
[1744932887883,10.19611136,134.65,134.64,1e-08]
[1744932888595,10.19611136,134.65,134.64,8.6858656]
[1744932888596,2.76944965,134.65,134.64,8.6858656]
[1744932889799,18.64964886,134.7,134.64,8.6858656]
[1744932889973,18.64964886,134.7,134.67,8.68586559]
[1744932890174,7.42390497,134.7,134.68,8.68586559]
[1744932890380,2.77311475,134.69,134.68,8.68586559]
[1744932890583,2.77311475,134.69,134.67,8.68586559]
[1744932890782,2.77311475,134.69,134.66,10.22196559]
[1744932890998,7.42390497,134.7,134.67,8.68586559]
[1744932891203,16.13921946,134.71,134.67,8.68586559]
[1744932891782,2.77181597,134.7,134.67,8.68586559]
[1744932892178,7.42445615,134.69,134.67,8.68586559]
[1744932894305,7.42390497,134.7,134.67,8.68586559]
[1744932895803,7.42390497,134.7,134.66,10.22196559]
[1744932897105,7.42390497,134.7,134.67,8.68586559]
[1744932898308,7.45353208,134.71,134.69,8.68586559]
[1744932898887,7.45353208,134.71,134.66,1.5361]
[1744932899105,7.45353208,134.71,134.67,8.68586559]
[1744932900514,7.45353208,134.71,134.68,8.68586559]
[1744932902296,7.45353208,134.71,134.66,1.5361]
[1744932902497,7.45353208,134.71,134.67,8.68586559]
[1744932907009,7.45353208,134.71,134.68,8.68586559]
[1744932911811,7.45353208,134.71,134.67,8.68586559]
[1744932914315,8.68586559,134.7,134.66,8.68586559]
[1744932915318,34.69778234,134.71,134.66,8.68586559]
[1744932915505,34.69778234,134.71,134.67,8.68586559]
[1744932916215,7.45353208,134.71,134.68,8.68586559]
[1744932917830,7.45353208,134.71,134.65,7.42622992]
[1744932918120,7.45353208,134.71,134.68,8.68586559]
[1744932918925,8.68586559,134.69,134.65,34.68586559]
[1744932919120,8.68586559,134.66,134.64,1e-08]
[1744932919630,8.68586559,134.65,134.64,1e-08]
[1744932920127,8.68586559,134.66,134.64,1e-08]
[1744932920824,7.42666171,134.65,134.64,1e-08]
[1744932923417,8.68586559,134.65,134.64,1e-08]
[1744932925005,7.4261102,134.66,134.64,1e-08]
[1744932925407,7.42555877,134.67,134.64,1e-08]
[1744932926127,7.42555877,134.67,134.64,8.6858656]
[1744932931634,7.42500742,134.68,134.64,8.6858656]
[1744932932334,7.42465192,134.69,134.66,8.68586559]
[1744932932628,7.42465192,134.69,134.67,8.68586559]
[1744932932835,7.42465192,134.69,134.66,8.68586559]
[1744932935234,16.11051751,134.69,134.65,8.68586559]
[1744932935736,16.11051751,134.69,134.64,26.00000001]
[1744932935737,16.11051751,134.69,134.64,34.6858656]
[1744932936429,8.68586559,134.68,134.64,34.6858656]
[1744932936609,8.68586559,134.68,134.64,8.6858656]
[1744932937518,7.42555877,134.67,134.64,8.6858656]
[1744932940246,1.5899,134.71,134.66,8.68586559]
[1744932940438,1.5899,134.71,134.68,8.68586559]
[1744932940640,2.76965579,134.7,134.68,8.68586559]
[1744932940845,2.76965579,134.7,134.67,8.68586559]
[1744932941451,10.19356076,134.7,134.67,8.68586559]
[1744932941931,7.42390497,134.7,134.67,8.68586559]
[1744932943036,7.42390497,134.7,134.66,8.68586559]
[1744932943346,16.10977056,134.7,134.66,8.68586559]
[1744932944156,34.66953299,134.7,134.65,8.68586559]
[1744932944341,8.68586559,134.67,134.64,1e-08]
[1744932944532,18.64964886,134.69,134.64,1e-08]
[1744932944533,8.68586559,134.68,134.64,1e-08]
[1744932944948,8.68586559,134.68,134.64,8.6858656]
[1744932945151,2.77028707,134.67,134.64,8.6858656]
[1744932945528,7.4261102,134.66,134.64,1e-08]
[1744932946862,7.42555877,134.67,134.64,1e-08]
[1744932947671,7.42555877,134.67,134.64,8.6858656]
[1744932957269,7.42555877,134.67,134.64,1e-08]
[1744932961469,2.7732397,134.66,134.64,1e-08]
[1744932962585,7.42555877,134.67,134.64,1e-08]
[1744932963872,2.77464276,134.66,134.64,1e-08]
[1744932966666,7.42555877,134.67,134.65,8.68586559]
[1744932966963,7.42500742,134.68,134.65,8.68586559]
[1744932967159,1.5899,134.71,134.67,8.68586559]
[1744932967373,0.03,134.71,134.7,8.68586559]
[1744932973071,0.03,134.71,134.65,1.6658]
[1744932973275,8.68586559,134.68,134.64,8.6858656]
[1744932973584,7.42555877,134.67,134.64,1e-08]
[1744932974572,7.42555877,134.67,134.64,26.00000001]
[1744932974876,7.42555877,134.67,134.64,34.6858656]
[1744932975080,8.71586559,134.71,134.66,8.68586559]
[1744932975282,7.42390497,134.7,134.67,8.68586559]
[1744932975584,16.10977056,134.7,134.66,8.68586559]
[1744932975780,16.10977056,134.7,134.65,8.68586559]
[1744932975984,2.77208025,134.69,134.65,8.68586559]
[1744932976374,8.68586559,134.68,134.64,34.6858656]
[1744932976890,25.9836674,134.7,134.66,8.68586559]
[1744932976891,16.10977056,134.7,134.66,8.68586559]
[1744932977470,8.68586559,134.68,134.64,26.00000001]